[Event "IX Famalicao Open 2022"]
[Site "Vila Nova de Famalicao"]
[Date "2022.07.25"]
[Round "2.6"]
[White "GARCIA FERNANDEZ, Manuel Angel"]
[Black "Nigmatov, Ortik"]
[Result "0-1"]
[ECO "E92"]
[WhiteElo "1606"]
[BlackElo "2437"]
[Annotator "TA"]
[PlyCount "76"]
[EventDate "2022.07.25"]
[EventType "tourn"]
[EventCountry "POR"]
[SourceTitle "playchess.com"]
[Source "ChessBase"]
[SourceQuality "1"]
[TimeControl "5400+30"]

{[%evp 19,76,16,24,-9,6,0,-8,-19,-15,-14,-5,-61,-39,-60,-57,-64,-55,-55,-68,-89,-65,-118,-99,-166,-116,-103,-58,-143,-146,-166,-115,-164,-162,-138,-131,-208,-171,-200,-205,-247,-247,-252,-260,-259,-254,-259,-257,-466,-357,-616,-591,-633,-623,-614,-616,-646,-639,-593,-563]} 1. d4 Nf6 2. Nf3 g6 3. c4 Bg7 4. Nc3 O-O 5. e4 d6 6. Be2 e5 7. dxe5 dxe5 8. Qxd8 Rxd8 9. Bg5 Nbd7 {[%cal Bb8d7,Bd7c5,Bc5e6,Be6d4][%mdl 32]} 10. Rd1 Rf8 $1 11. h3 {E92: King's Indian: Classical: 6 Be2 e5: 7 dxe5, 7 Be3 and Petrosian System without 7...Nbd7.} c6 12. O-O Nc5 13. Nd2 {The position is equal.} Ne6 14. Be3 Nd4 {[#]} 15. Bf3 $146 (15. Bd3 $11) ({Predecessor:} 15. f3 Be6 16. b3 Rfd8 17. Kf2 Rd7 18. c5 Rad8 19. Bc4 Nc2 20. Bxe6 fxe6 21. Nc4 Nxe3 22. Kxe3 Rxd1 23. Rxd1 {1-0 (39) Brown,A (1795)-Haddock,P (1590) Glasgow 2016}) 15... Re8 16. Rc1 Be6 17. Be2 a5 {[%cal Ba7a5,Ba5a4][%mdl 32]} 18. Rfe1 a4 19. f3 Nd7 20. g4 ({White should play} 20. Bf1 $15) 20... Nc5 21. Kg2 (21. Bf1 $17) 21... Red8 (21... Nxe2 $19 22. Rxe2 Nd3) 22. Bf1 $17 Ra6 23. Ndb1 (23. Nd5 $15) 23... Rb6 $36 {[%mdl 2048] Keeping White busy.} 24. Nd1 h6 (24... Bf6 $19 25. Bd2 a3 26. bxa3 Ra8) 25. Rc3 (25. Nbc3 $17) 25... Bf8 {[%cal Bg7f8,Bf8e7,Be7g5][%mdl 32]} 26. Bc1 Na6 {...Nb4 is the strong threat. 0x0.0002dece0979dp-1022s more active pieces.} 27. a3 {Prevents Nb4.} (27. Nf2 $17) 27... Nc5 28. Nd2 Be7 29. Ne3 Bg5 30. Kg3 Ndb3 31. Nxb3 Rxb3 ({Weaker is} 31... Nxb3 32. c5 Bf4+ 33. Kf2 Nxc1 34. cxb6 Rd2+ 35. Kg1 $11) (31... axb3 32. Nd1 $17) 32. Rc2 Rdd3 33. Bxd3 {[#]} (33. Rce2 {was the only chance.}) 33... Nxd3 34. Ree2 $2 (34. Ng2 Bxc1 35. Rexc1 Nxc1 36. Rxc1 Rxb2 37. c5) 34... Nxc1 $19 {Black is clearly winning.} 35. Rxc1 Bxe3 36. Rcc2 Bd4 37. Red2 b6 38. Kg2 g5 {Weighted Error Value: White=0.42/Black=0.15 (very precise)} 0-1

[Event "IX Famalicao Open 2022"]
[Site "Vila Nova de Famalicao"]
[Date "2022.07.25"]
[Round "2.7"]
[White "Krishna C R G"]
[Black "Lopes, Jose Eduardo Santos "]
[Result "1-0"]
[ECO "A48"]
[WhiteElo "2430"]
[BlackElo "1661"]
[Annotator "TA"]
[PlyCount "101"]
[EventDate "2022.07.25"]
[EventType "tourn"]
[EventCountry "POR"]
[SourceTitle "playchess.com"]
[Source "ChessBase"]
[SourceQuality "1"]
[TimeControl "5400+30"]

{[%evp 13,101,0,22,10,111,94,94,88,88,102,108,104,110,117,114,118,145,100,111,100,113,114,112,112,127,87,116,109,113,118,115,85,115,108,104,103,108,115,749,126,738,126,127,115,134,132,163,139,142,144,139,131,232,220,202,209,237,186,178,103,142,105,114,104,134,131,132,132,149,147,152,156,144,133,147,154,153,157,154,153,236,222,316,310,313,302,292,271,356,102]} 1. d4 Nf6 2. Nf3 g6 3. Nc3 d5 4. Bf4 Bg7 5. e3 O-O 6. Be2 c5 7. dxc5 {Nowadays more popular than 7.Ne5.} Qa5 8. Nd2 {D00: 1 d4 d5: Unusual lines.} Ne4 (8... Qxc5 $11 9. Nb3 Qb6) 9. Ncxe4 (9. Ndxe4 $6 dxe4 10. O-O Bxc3 11. bxc3 Rd8 $11) 9... dxe4 10. c3 {White is better.} Qxc5 11. Nxe4 Qb6 12. Qb3 {[#] White is more active.} Be6 $146 ({Predecessor:} 12... Nd7 13. O-O a5 14. Rfd1 a4 15. Qxb6 Nxb6 16. Bc7 Nd7 17. a3 b6 18. Bb5 Ra7 19. Bxd7 Rxc7 20. Bxa4 {1-0 (44) Guidarelli,L (2272)-Wolrich,C (2161) France 1999}) 13. Qxb6 axb6 14. a3 Nd7 15. O-O Bb3 16. Nd2 Bd5 17. e4 Bc6 18. Be3 Nc5 19. Bc4 Bd7 20. Rab1 Rfd8 21. f3 Ba4 22. Rfe1 Nd3 23. Bxd3 Rxd3 24. Nc4 Bb3 25. Nxb6 Rc8 {[%mdl 8192]} 26. Nd5 $2 (26. Nxc8 $18 {is the precise move to win.} e6 27. Rbc1) 26... e6 $2 {[%mdl 8192]} (26... Bxd5 $16 27. exd5 Rxd5) 27. Nb4 $2 (27. Ne7+ $18 Kh8 28. Nxc8) 27... Rd6 28. Rbc1 b5 29. Nc2 Bc4 30. f4 e5 31. fxe5 Bxe5 32. Nd4 {Inhibits Re6.} Kg7 (32... Re8 $16 33. Rcd1 Bxd4 34. Rxd4 (34. Bxd4 Rde6 $16) 34... Rxd4 35. Bxd4 f5) 33. Nf3 $18 f6 34. Bd4 Bf4 35. Rc2 {Hoping for g3.} Re6 36. Rf2 (36. e5 $18) 36... Kg8 37. g3 Bh6 38. Be3 Bf8 39. Nd2 Bd3 40. Bd4 Bh6 {[#]} 41. Nb3 $1 {aiming for Nc5.} Rxe4 42. Rxe4 Bxe4 {This bishop pair is nice.} 43. Rxf6 Bd5 44. Nc5 Re8 45. Rd6 Bc4 46. b3 Be2 (46... Bf8 $16) 47. Nd7 {[#] Threatens to win with Nf6+.} Re7 (47... Bg7 $142 48. a4 bxa4) 48. Nf6+ Kf7 49. Nd5 ({Resist} 49. Nxh7 Bd1 50. b4 Re1+ 51. Kg2 Re2+ 52. Kh3 Re6 53. Rd7+ Re7 $18) 49... Re4 50. Rb6 Bg4 51. Nf6 $2 {Weighted Error Value: White=0.35/Black=0.27 (precise)} ({But not} 51. Rxb5 Re1+ 52. Kg2 Rd1 53. Rb7+ Ke6 $18) (51. Rb7+ $18 {is more deadly.} Ke6 52. Nc7+ (52. Rxh7 Kxd5 53. Rxh6 Re1+ 54. Kf2 Re2+ 55. Kf1 Re6 $18) 52... Kf7 53. Nxb5+ Re7 54. Nd6+ Ke6 55. Rxe7+ Kxe7 56. Nc4) 1-0

[Event "IX Famalicao Open 2022"]
[Site "Vila Nova de Famalicao"]
[Date "2022.07.25"]
[Round "2.8"]
[White "Alonso Moyano, Miguel"]
[Black "Akhvlediani, Irakli"]
[Result "0-1"]
[ECO "B25"]
[WhiteElo "1568"]
[BlackElo "2429"]
[Annotator "TA"]
[PlyCount "70"]
[EventDate "2022.07.25"]
[EventType "tourn"]
[EventCountry "POR"]
[SourceTitle "playchess.com"]
[Source "ChessBase"]
[SourceQuality "1"]
[TimeControl "5400+30"]

{[%evp 19,70,-12,0,-12,-5,-18,0,-12,0,-44,-13,-52,-43,-39,-52,-59,-51,-57,-58,-54,-51,-46,-27,-42,-34,-42,-40,-107,-117,-106,-107,-89,-38,-101,-88,-90,-92,-74,-79,-204,-213,-270,-239,-193,-114,-294,-266,-758,-756,-724,-733,-4914,-612]} 1. e4 c5 2. Nc3 Nc6 3. g3 g6 4. Bg2 Bg7 5. d3 d6 6. f4 e6 7. Nf3 Nge7 8. Be3 b6 9. O-O O-O 10. Bf2 Ba6 11. Qd2 {B25: Closed Sicilian: 3 g3, lines without early Be3.} Rc8 12. Rfe1 Nd4 {[#]} 13. Rab1 $146 {The position is equal.} ({Predecessor:} 13. Nxd4 cxd4 14. Ne2 Qc7 15. Rac1 e5 16. c3 dxc3 17. Rxc3 Qd7 18. Ra3 Bb5 19. Nc3 {1-0 (43) Starostits,I (2468)-Dinger,F (2054) Leutersdorf 2005}) 13... Bb7 14. Nd1 Qd7 15. c3 Nxf3+ 16. Bxf3 f5 17. d4 fxe4 18. Bxe4 Bxe4 19. Rxe4 d5 20. Re2 Nf5 {[%cal Og6g5]} 21. dxc5 $1 bxc5 22. Ne3 Nd6 23. Nxd5 exd5 $17 24. Qxd5+ {[#]} Rf7 $1 {[%cal Bf8f7,Bf7a7,Ba7a2][%mdl 32]} 25. Rd1 {[#]} Qg4 (25... Qb5 $1 $17 {[%cal Rb5e2]} 26. Re6 Nf5) 26. Re7 (26. Rde1 $15 Qd7 27. Rd2 (27. Bxc5 Ne4 $15)) 26... Bf8 27. Rxa7 {[#]} Qxd1+ $1 28. Qxd1 Rxa7 29. Qd5+ (29. a4 $17) 29... Nf7 $19 {Threatens to win with ...Rb8.} 30. Kg2 Rd8 31. Qb3 Bd6 ({Black should try} 31... Rd2 $19 {...Re7 is the strong threat.} 32. Kf1 Rad7) 32. Qb6 $2 (32. Qc2 $17) 32... Rxa2 {White must now prevent ...Rb8.} 33. Bxc5 $2 (33. Qb3 Ra5 34. Be3) 33... Bxc5 {Black is clearly winning.} 34. Qxc5 Rxb2+ 35. Kh3 Rdd2 {Weighted Error Value: White=0.75/Black=0.12 (very precise)} (35... h5 $142 36. Qg1 g5) 0-1

[Event "IX Famalicao Open 2022"]
[Site "Vila Nova de Famalicao"]
[Date "2022.07.25"]
[Round "2.9"]
[White "Umetsubo, Cesar Hidemitsu"]
[Black "Albuquerque, Eduardo Ferreira"]
[Result "1-0"]
[ECO "D45"]
[WhiteElo "2405"]
[BlackElo "1828"]
[Annotator "TA"]
[PlyCount "43"]
[EventDate "2022.07.25"]
[EventType "tourn"]
[EventCountry "POR"]
[SourceTitle "playchess.com"]
[Source "ChessBase"]
[SourceQuality "1"]
[TimeControl "5400+30"]

{[%evp 17,43,25,41,22,84,83,82,27,20,7,43,39,44,45,45,33,28,30,716,612,612,612,29992,29993,29993,29994,29994,29995]} 1. d4 d5 {[%emt 0:00:37]} 2. c4 {[%emt 0:00:28]} c6 {[%emt 0:00:22]} 3. Nf3 {[%emt 0:00:23]} Nf6 {[%emt 0:00:29]} 4. Nc3 {[%emt 0:00:12]} e6 {[%emt 0:03:10]} 5. e3 {[%emt 0:00:19]} Be7 {[%emt 0:01:55]} 6. Bd3 {[%emt 0:02:12]} O-O {[%emt 0:00:56]} 7. O-O {[%emt 0:00:07]} dxc4 {[%emt 0:00:34]} 8. Bxc4 {[%emt 0:00:03]} b5 {[%emt 0:00:16]} 9. Bd3 {[%emt 0:01:31]} Bb7 {[%emt 0:01:16]} 10. e4 {[%emt 0:04:12][%cal Be3e4,Be4e5][%mdl 32] D45: Semi-Slav: 5 e3.} a6 {[%emt 0:02:15]} (10... b4 $11) 11. e5 {[%emt 0:01:58]} Nfd7 {[%emt 0:01:46]} 12. Ne4 {[%emt 0:07:23] White is more active.} (12. Be4 $16) 12... c5 $11 {[%emt 0:01:32]} 13. dxc5 {[%emt 0:05:44] [#]} (13. Nxc5 {is interesting.} Nxc5 14. dxc5 Nd7 15. c6) 13... Nxc5 $146 {[%emt 0:01:19]} (13... Nc6 {is more complex.} 14. Nd6 Nxc5 15. Bb1 f5) ({Predecessor:} 13... Bxc5 14. Bg5 Be7 15. Bxe7 Qxe7 16. Nd6 Bd5 17. Be4 Nb6 18. Qc2 h6 19. Rac1 Bxe4 20. Qxe4 {0-1 (42) Meinhardt,G (1948)-Trostel,U Dresden 2006}) 14. Nxc5 {[%emt 0:00:48]} Bxc5 {[%emt 0:00:16] [#]} 15. Bxh7+ $1 {[%emt 0:03:04]} Kxh7 {[%emt 0:02:20]} 16. Qc2+ {[%emt 0:00:13]} Kg8 {[%emt 0:00:13] Threatens to win with ...Be7.} 17. Ng5 {[%emt 0:06:56][%csl Gg5][%cal Rc2h7]} Bxf2+ $2 {[%emt 0:02:25][%mdl 8192] Black cannot hold the game after this.} 18. Rxf2 $18 {[%emt 0:00:16][%csl Gg5][%cal Rc2h7]} g6 {[%emt 0:01:01] [#]} 19. Nxe6 $1 {[%emt 0:04:41][%mdl 512]} fxe6 {[%emt 0:00:19]} (19... Qc8 20. Nxf8) 20. Qxg6+ {[%emt 0:00:08] White mates.} Kh8 {[%emt 0:00:17]} 21. Qh5+ {[%emt 0:00:30]} Kg8 {[%emt 0:00:36]} 22. Bh6 {[%emt 0:00:28] Weighted Error Value: White=0.10 (very precise) /Black=0.75} 1-0

[Event "IX Famalicao Open 2022"]
[Site "Vila Nova de Famalicao"]
[Date "2022.07.25"]
[Round "2.10"]
[White "Arbulu Rocha, Miguel"]
[Black "Campora, Daniel H."]
[Result "0-1"]
[ECO "B07"]
[WhiteElo "1931"]
[BlackElo "2397"]
[Annotator "TA"]
[PlyCount "75"]
[EventDate "2022.07.25"]
[EventType "tourn"]
[EventCountry "POR"]
[SourceTitle "playchess.com"]
[Source "ChessBase"]
[SourceQuality "1"]
[TimeControl "5400+30"]

{[%evp 9,75,0,0,0,11,6,10,6,13,-8,-6,-7,5,-35,-14,-51,-30,-93,-63,-138,-135,-136,-118,-118,-120,-127,-122,-112,-101,-106,-72,-80,-73,-113,-98,-108,-102,-165,-163,-163,-171,-172,-182,-239,-240,-235,-244,-224,-240,-272,-262,-295,-296,-297,-279,-287,-215,-296,-242,-229,-245,-401,-397,-379,-327,-408,-376,-476]} 1. e4 {[%emt 0:03:10]} d6 {[%emt 0:00:12]} 2. d4 {[%emt 0:00:31]} Nf6 {[%emt 0:00:06]} 3. Nc3 {[%emt 0:00:33]} Nbd7 {[%emt 0:00:17]} 4. Be3 {[%emt 0:00:57]} e5 {[%emt 0:00:09]} 5. d5 {[%emt 0:02:30]} c6 {[%emt 0:00:25]} 6. f3 {[%emt 0:01:10] B07: Pirc Defence: Miscellaneous Systems.} Qa5 {[%emt 0:01:32]} 7. Qd2 {[%emt 0:00:44]} cxd5 {[%emt 0:00:34] [#]} 8. Nxd5 $146 {[%emt 0:00:29] The position is equal.} (8. exd5 {with more complications.} Nb6 9. O-O-O Be7 10. a3) ({Predecessor:} 8. exd5 a6 9. a3 b5 10. b4 Qc7 11. a4 bxa4 12. Nxa4 Bb7 13. c4 Rc8 14. Bd3 {1-0 (28) Guimond,M (1904)-Jobin,G (1795) Gatineau 2018}) 8... Qxd2+ {[%emt 0:00:18]} 9. Bxd2 {[%emt 0:00:15] [#] Black must now prevent Nc7+.} Nxd5 {[%emt 0:00:04]} 10. exd5 {[%emt 0:00:06]} Be7 {[%emt 0:00:05]} 11. Bd3 {[%emt 0:00:41]} O-O {[%emt 0:00:11]} 12. Ne2 {[%emt 0:00:33]} Nc5 {[%emt 0:00:17]} 13. Nc1 {[%emt 0:01:27]} (13. Bc4 $11 {keeps the balance.}) 13... Bd7 {[%emt 0:00:59]} 14. b4 {[%emt 0:02:33]} ({White should play} 14. Be3 $15) 14... Nxd3+ $17 {[%emt 0:00:24]} 15. Nxd3 {[%emt 0:01:02]} Rac8 {[%emt 0:00:28]} 16. Rc1 {[%emt 0:01:14]} Rc7 {[%emt 0:01:27]} 17. c3 {[%emt 0:04:39]} f5 {[%emt 0:01:01]} 18. Nb2 {[%emt 0:04:05]} Rfc8 {[%emt 0:02:22]} 19. a4 {[%emt 0:01:30]} Bh4+ {[%emt 0:01:45]} 20. g3 {[%emt 0:01:58]} Bf6 {[%emt 0:00:07]} 21. a5 {[%emt 0:08:43]} e4 {[%emt 0:01:52]} 22. Nd1 Bb5 {[%emt 0:03:16]} 23. Kf2 {[%emt 0:04:36]} (23. fxe4 $17 fxe4 24. Kf2) 23... exf3 $19 {[%emt 0:02:04]} 24. Kxf3 {[%emt 0:03:20]} Bc4 {[%emt 0:01:17]} 25. Ne3 {[%emt 0:00:43]} Bd3 {[%emt 0:00:06] A strong pair of Bishops.} 26. Kf2 {[%emt 0:01:31]} (26. Rhg1 $142) 26... Bxc3 {[%emt 0:00:33]} 27. Bxc3 {[%emt 0:00:51]} Rxc3 {[%emt 0:00:06]} 28. Rxc3 {[%emt 0:00:44]} Rxc3 {[%emt 0:00:07][%mdl 4096] Endgame KRB-KRN} 29. Rd1 {[%emt 0:00:41]} Kf7 {[%emt 0:01:41]} 30. Ke1 {[%emt 0:01:09]} Kf6 {[%emt 0:01:56]} 31. Kd2 {[%emt 0:00:44]} Rb3 {[%emt 0:00:06]} 32. Rc1 {[%emt 0:00:12]} Be4 {[%emt 0:00:38]} 33. Nc4 {[%emt 0:02:50]} Rd3+ {[%emt 0:00:37]} ({Not} 33... Bxd5 $2 34. Nxd6 Rxb4 35. Ne8+ Kg6 36. Rc5 $19) 34. Ke2 {[%emt 0:00:14]} Rxd5 {[%emt 0:00:10]} 35. Ne3 $2 {[%emt 0:00:47] [#]} (35. Rc3 {keeps fighting.}) 35... Rd4 {[%emt 0:00:54]} 36. b5 {[%emt 0:00:46]} Bd3+ {[%emt 0:00:28]} 37. Kf2 {[%emt 0:00:06]} Bxb5 {[%emt 0:00:07]} 38. Kf3 {Weighted Error Value: White=0.31/Black=0.11 (very precise)} 0-1

[Event "IX Famalicao Open 2022"]
[Site "Vila Nova de Famalicao"]
[Date "2022.07.25"]
[Round "2.11"]
[White "Dias, Paulo"]
[Black "Silva, Artur Lemos"]
[Result "1-0"]
[ECO "E65"]
[WhiteElo "2348"]
[BlackElo "1757"]
[Annotator "TA"]
[PlyCount "47"]
[EventDate "2022.07.25"]
[EventType "tourn"]
[EventCountry "POR"]
[SourceTitle "playchess.com"]
[Source "ChessBase"]
[SourceQuality "1"]
[TimeControl "5400+30"]

{[%evp 18,47,49,47,66,60,79,76,117,94,110,109,104,104,109,109,106,105,100,97,93,104,115,120,191,183,188,187,184,167,454,438]} 1. d4 Nf6 2. c4 g6 3. Nf3 Bg7 4. g3 O-O 5. Bg2 d6 6. Nc3 c5 7. O-O Nbd7 8. e4 cxd4 9. Nxd4 Ne5 10. b3 Bd7 {E65: King's Indian: Fianchetto: 6...c5 7 0-0 without d5 by White.} 11. h3 Rb8 12. Be3 {[#]} h6 $146 {White is better.} ({Predecessor:} 12... Qc8 13. Kh2 a6 14. Rc1 Qd8 15. a4 Qa5 16. Nd5 Nxd5 17. exd5 Be8 18. Re1 h6 19. f4 {1-0 (31) Butvilas,A (2136)-Jankus,G (1731) Lithuania 2022}) 13. Qd2 Kh7 14. f4 Nc6 15. Nxc6 Bxc6 16. Bxa7 Ra8 17. Bd4 {White is more active.} e5 18. fxe5 dxe5 19. Be3 {[%cal Bd4e3,Be3d2,Bd2b4,Bb4f8,Bf8g7][%mdl 32]} Qxd2 20. Bxd2 Rad8 (20... Nh5 $16 {was worth a try.}) 21. Nd5 $18 Nh5 22. Bb4 Nxg3 23. Bxf8 Nxf1 $2 {[#]} (23... Rxf8 24. Rf2 f5) 24. Bxg7 {Weighted Error Value: White=0.02 (flawless) /Black=0.54} ({Stronger than} 24. Rxf1 Rxf8 25. Kf2 h5 $11) 1-0

[Event "IX Famalicao Open 2022"]
[Site "Vila Nova de Famalicao"]
[Date "2022.07.25"]
[Round "2.12"]
[White "De Medeiros, Sara Soares"]
[Black "Borges, Guilherme Deola"]
[Result "0-1"]
[ECO "A58"]
[WhiteElo "1853"]
[BlackElo "2185"]
[Annotator "TA"]
[PlyCount "66"]
[EventDate "2022.07.25"]
[EventType "tourn"]
[EventCountry "POR"]
[SourceTitle "playchess.com"]
[Source "ChessBase"]
[SourceQuality "1"]
[TimeControl "5400+30"]

{[%evp 22,66,50,19,33,25,49,27,29,0,10,17,51,18,40,18,19,0,0,0,0,0,94,94,91,0,112,88,83,81,85,94,95,62,69,13,114,-87,-47,-54,-58,-137,-118,-395,-379,-29995,-29996]} 1. d4 {[%emt 0:00:30]} Nf6 {[%emt 0:00:09]} 2. c4 {[%emt 0:00:24]} c5 {[%emt 0:00:11]} 3. d5 {[%emt 0:00:40]} b5 {[%emt 0:01:01]} 4. cxb5 {[%emt 0:01:38]} a6 {[%emt 0:00:08]} 5. bxa6 {[%emt 0:02:44]} g6 {[%emt 0:00:10]} 6. Nc3 {[%emt 0:03:09]} Bxa6 {[%emt 0:00:11]} 7. g3 {[%emt 0:02:18]} d6 {[%emt 0:00:21]} 8. Bg2 {[%emt 0:01:25]} Bg7 {[%emt 0:00:13]} 9. Nf3 {[%emt 0:01:16]} O-O {[%emt 0:00:14]} 10. O-O {[%emt 0:01:09]} Nbd7 {[%emt 0:00:12]} 11. Re1 {[%emt 0:04:41]} Ng4 {[%emt 0:03:22]} 12. Qc2 {[%emt 0:13:32]} Qb6 {[%emt 0:05:24] A58: Benko/Volga Gambit: Lines with 5 bxa6.} 13. Rb1 {[%emt 0:22:06]} Rfb8 {[%emt 0:11:38]} 14. Bd2 {[%emt 0:08:17] [#]} Qa7 $146 {[%emt 0:05:29] White has an edge.} ({Predecessor:} 14... c4 15. Rf1 Bb7 16. h3 Nge5 17. Nxe5 Nxe5 18. b3 cxb3 19. Rxb3 {½-½ (48) Rodrigues,T (1683)-Fernandes,T (1969) Lisbon 2018}) 15. a3 {[%emt 0:11:22]} Nge5 {[%emt 0:13:14]} 16. Nxe5 {[%emt 0:02:34]} Bxe5 {[%emt 0:00:32]} 17. Ne4 {[%emt 0:02:53]} Nb6 {[%emt 0:07:48]} 18. Bc3 {[%emt 0:01:09]} (18. f4 $5 {[%cal Rf4e5]} Bg7 19. Bc3 $14) 18... Bxc3 {[%emt 0:00:18]} 19. Nxc3 {[%emt 0:00:17]} (19. Qxc3 {looks sharper.} Bb7 20. b4 Nxd5 21. Qd3) 19... Nc4 $1 {[%emt 0:01:14]} 20. Ne4 {[%emt 0:02:07]} Rb6 $1 {[%emt 0:06:13]} 21. Nd2 {[%emt 0:02:53]} Ne5 {[%emt 0:01:58]} (21... Nxd2 $11 22. Qxd2 Rb3) 22. b3 $16 {[%emt 0:05:21]} Rab8 {[%emt 0:00:40][%cal Oc5c4]} 23. Nf3 {[%emt 0:01:22]} (23. Ra1 $16) 23... Ng4 {[%emt 0:03:06]} (23... Nxf3+ $11 {remains equal.} 24. Bxf3 (24. exf3 Bc8 $11) 24... Bc8) 24. e3 {[%emt 0:00:48]} Qb7 {[%emt 0:02:32][%cal Rb6b3] [#]} 25. Nd2 {[%emt 0:00:11]} Ne5 {[%emt 0:00:15]} 26. Qc3 {[%emt 0:01:22]} Bd3 {[%emt 0:09:10]} 27. Rb2 {[%emt 0:02:36] And now f4 would win.} Qa6 {[%emt 0:00:09]} 28. Ra2 {[%emt 0:01:07]} (28. f4 $14 Ng4 29. h3) 28... h5 {[%emt 0:08:24]} (28... c4 $11 {keeps the balance.} 29. bxc4 Bxc4 30. Nxc4 Rb3) 29. Bf1 $2 {[%emt 0:00:38]} (29. f4 $16 Nd7 30. e4) 29... Bxf1 {[%emt 0:02:51]} 30. Rxf1 {[%emt 0:00:01]} Qe2 {[%emt 0:01:22][%cal Oh5h4]} 31. Rb2 {[%emt 0:00:40] [#]} ({White should try} 31. Rc2 $15) 31... h4 $1 $17 {[%emt 0:03:37][%cal Bh5h4,Bh4h3][%mdl 1056] Black has strong compensation. Black is more active.} 32. Kg2 $2 {[%emt 0:01:46][%mdl 8192]} (32. h3 $17 {might work better.}) 32... h3+ $19 {[%emt 0:05:27]} 33. Kg1 $2 {[%emt 0:01:50]} (33. Kxh3 $19 Nd3 34. Rbb1 Nxf2+ 35. Rxf2 Qxf2 36. e4) 33... Nf3+ {[%emt 0:00:16] Weighted Error Value: White=0.81/Black=0.29 (precise)} 0-1

[Event "IX Famalicao Open 2022"]
[Site "Vila Nova de Famalicao"]
[Date "2022.07.26"]
[Round "3.1"]
[White "Martinez Duany, Lelys Stanley"]
[Black "Rodriguez Lopez, Rafael"]
[Result "1/2-1/2"]
[ECO "A05"]
[WhiteElo "2497"]
[BlackElo "2172"]
[Annotator "TA"]
[PlyCount "101"]
[EventDate "2022.07.25"]
[EventType "tourn"]
[EventCountry "POR"]
[SourceTitle "playchess.com"]
[Source "ChessBase"]
[SourceQuality "1"]
[TimeControl "5400+30"]

{[%evp 9,101,7,10,10,12,8,14,11,14,2,15,2,8,3,21,10,11,10,1,4,21,30,19,14,29,7,2,16,2,-9,-9,-38,-30,-30,-29,-30,-27,-31,-22,-32,-32,-32,-26,-22,-22,-41,-20,-20,-20,-20,0,-23,-7,0,-2,-2,-4,-5,0,0,0,0,0,0,0,0,0,0,0,0,0,0,14,0,0,0,0,0,0,0,0,0,0,0,0,0,8,0,0,0,0,0,0,0]} 1. Nf3 Nf6 2. b3 g6 3. Bb2 Bg7 4. c4 c5 5. g3 d6 6. Bg2 {A30: Symmetrical English: Double Fianchetto and Hedgehog.} e5 {Prevents d4.} 7. O-O O-O 8. d3 Nc6 9. a3 Ne8 {[%cal Oe5e4]} 10. Nc3 Nc7 11. Nd2 Rb8 12. b4 {[#]} Ne7 $146 ({Predecessor:} 12... cxb4 13. axb4 Nxb4 14. Qb3 Nba6 15. Ba3 Be6 16. Nde4 b5 17. Bxd6 bxc4 18. Qa4 cxd3 19. Bxf8 dxe2 20. Bxg7 exf1=Q+ 21. Bxf1 Kxg7 22. Bxa6 {1-0 (45) Karjakin,S (2785)-Grischuk,A (2737) Doha 2016}) 13. bxc5 dxc5 14. a4 b6 15. a5 Bb7 16. axb6 axb6 17. Bxb7 Rxb7 18. Qa4 f5 19. Nb5 Ne6 20. Qa6 Rb8 21. Rfb1 Nc6 22. Qa4 e4 23. Bxg7 Kxg7 24. Qc2 exd3 25. Qxd3 Qxd3 26. exd3 Rfd8 27. Re1 Kf6 28. Re3 Rb7 29. Rae1 Ng7 30. Rf3 {[#] aiming for Ne4+.} Rbd7 31. Ne4+ {The position is equal.} Kf7 32. Ng5+ Kg8 33. Ne6 Re8 (33... Re7 $5 34. Rfe3 Nxe6 35. Rxe6 Kf7 36. Rxe7+ Nxe7 $11) 34. Rfe3 Rxe6 35. Rxe6 Nxe6 36. Rxe6 $11 {[%mdl 4096] Endgame KRN-KRN} Nb4 37. Rxb6 {[%cal Od3d4]} Nxd3 38. Kg2 Kf7 39. f4 Ke7 40. Rc6 Rb7 41. Kh3 Nf2+ 42. Kh4 Ne4 43. g4 fxg4 44. Kxg4 Nd2 45. Rxc5 Nxc4 46. Kg5 Kf7 47. Kh6 Kf6 48. h3 Ne3 {[#] ...Nf5+ is the strong threat.} 49. Rc6+ Ke7 50. Nd4 {Strongly threatening Re6+.} Rb4 51. Re6+ {Weighted Error Value: White=0.04 (flawless) /Black=0.03 (flawless)} 1/2-1/2